fUST/lending_fUST_20240224
["ID","MTS","AMOUNT","RATE_DAILY","PERIOD"]
[314986872,1708716639270,-556.14,0.00019178,2]
[314986874,1708716639280,-6390.48,0.00019178,2]
[314986876,1708716639289,-500.0,0.00019178,2]
[314986878,1708716639298,-500.0,0.00019178,2]
[314986880,1708716639308,-500.0,0.00019178,2]
[314986882,1708716639317,-2057.54,0.00019178,2]
[314986884,1708716639327,-500.0,0.00019178,2]
[314986885,1708716639336,-431.47201084,0.00019178,2]
[314986887,1708716639345,-500.0,0.00019178,2]
[314986889,1708716639354,-6.63898987,0.00019178,2]
[314986892,1708716639367,-10570.95119669,0.00019178,2]
[314987120,1708716641578,-1895.09981344,0.00019178,2]
[314987122,1708716641588,-500.0,0.00019178,2]
[314987124,1708716641597,-1146.71,0.00019178,2]
[314987126,1708716641606,-169.36127377,0.00019178,2]
[314987127,1708716641615,-989.12,0.00019178,2]
[314987129,1708716641624,-500.0,0.00019178,2]
[314987132,1708716641634,-500.0,0.00019178,2]
[314987134,1708716641644,-500.0,0.00019178,2]
[314987135,1708716641653,-500.0,0.00019178,2]
[314987137,1708716641662,-500.0,0.00019178,2]
[314987140,1708716641671,-500.0,0.00019178,2]
[314987142,1708716641681,-982.9,0.00019178,2]
[314987143,1708716641690,-892.71,0.00019178,2]
[314987146,1708716641699,-625.89,0.00019178,2]
[314987147,1708716641709,-500.0,0.00019178,2]
[314987149,1708716641719,-500.0,0.00019178,2]
[314987151,1708716641728,-4005.27,0.00019178,2]
[314987154,1708716641738,-1097.52,0.00019178,2]
[314987155,1708716641746,-668.49,0.00019178,2]
[314987157,1708716641756,-500.0,0.00019178,2]
[314987160,1708716641765,-4642.25,0.00019178,2]
[314987162,1708716641774,-500.0,0.00019178,2]
[314987163,1708716641786,-1574.56,0.00019178,2]
[314987165,1708716641795,-500.0,0.00019178,2]
[314987167,1708716641804,-1155.55,0.00019178,2]
[314987169,1708716641814,-12419.95,0.00019178,2]
[314987171,1708716641825,-500.0,0.00019178,2]
[314987173,1708716641835,-2040.97,0.00019178,2]
[314987176,1708716641844,-500.21907548,0.00019178,2]
[314987177,1708716641854,-1381.85,0.00019178,2]
[314987179,1708716641863,-500.0,0.00019178,2]
[314987182,1708716641873,-1661.47,0.00019178,2]
[314987184,1708716641882,-500.0,0.00019178,2]
[314987185,1708716641892,-585.43,0.00019178,2]
[314987188,1708716641902,-1007.9,0.00019178,2]
[314987189,1708716641911,-1290.21,0.00019178,2]
[314987191,1708716641920,-500.0,0.00019178,2]
[314987192,1708716641929,-524.23,0.00019178,2]
[314987194,1708716641938,-256.3778978,0.00019178,2]
[314987196,1708716641947,-1033.42,0.00019178,2]
[314987198,1708716641956,-500.0,0.00019178,2]
[314987200,1708716641966,-500.0,0.00019178,2]
[314987202,1708716641975,-500.0,0.00019178,2]
[314987204,1708716641984,-500.0,0.00019178,2]
[314987206,1708716641994,-500.0,0.00019178,2]
[314987208,1708716642002,-476.44405608,0.00019178,2]
[314987210,1708716642011,-1544.58,0.00019178,2]
[314987212,1708716642020,-500.0,0.00019178,2]
[314987214,1708716642029,-500.0,0.00019178,2]
[314987216,1708716642038,-868.18,0.00019178,2]
[314987218,1708716642047,-500.4547661,0.00019178,2]
[314987220,1708716642056,-500.0,0.00019178,2]
[314987222,1708716642066,-569.37014409,0.00019178,2]
[314987224,1708716642074,-500.0,0.00019178,2]
[314987226,1708716642085,-500.0,0.00019178,2]
[314987228,1708716642093,-500.0,0.00019178,2]
[314987230,1708716642103,-310.35,0.00019178,2]
[314987232,1708716642111,-500.0,0.00019178,2]
[314987234,1708716642121,-205.64233542,0.00019178,2]
[314987236,1708716642129,-500.0,0.00019178,2]
[314987238,1708716642139,-278.13278054,0.00019178,2]
[314987240,1708716642148,-166.666666,0.00019178,2]
[314987242,1708716642160,-161.75461704,0.00019352,2]
[314987244,1708716642170,-24549.29185338,0.00019352,2]
[314987246,1708716642182,-1629.243334,0.00019352,2]
[314987375,1708716643437,-886.027425,0.00019352,2]
[314987377,1708716643448,-321.58043892,0.00019352,2]
[314987379,1708716643461,-2663.52486239,0.00019352,2]
[314987698,1708716646481,-1098.93,0.00019178,2]
[314987700,1708716646491,-9802.4546624,0.00019352,2]
[314991221,1708717517059,696.607487,0.00017842,2]
[314991222,1708717521847,400.395752,0.00017938,2]
[314991277,1708717832602,-154.87609912,0.00018177,2]
[314991279,1708717832612,-1622.40498126,0.00018357,2]
[314991280,1708717832622,-450.72411884,0.00018358,2]
[314991281,1708717832638,-945.82042822,0.00018358,2]
[314991634,1708717841851,-481.78239802,0.00018358,2]
[314991636,1708717841861,-625.44826244,0.00018364,2]
[314991638,1708717841873,-1243.72734381,0.00018364,2]
[314991640,1708717841882,-474.03025418,0.000189,2]
[314991642,1708717841891,-210.51744095,0.00019078,2]
[314991644,1708717841899,-171.875,0.00019078,2]
[314991646,1708717841908,-500.0,0.00019178,2]
[314991648,1708717841917,-500.0,0.00019178,2]
[314991650,1708717841927,-677.58,0.00019178,2]
[314991652,1708717841937,-47.14906106,0.00019178,2]
[314991945,1708717844857,-452.85093894,0.00019178,2]
[314991947,1708717844867,-500.0,0.00019178,2]
[314991949,1708717844876,-500.0,0.00019178,2]
[314991951,1708717844886,-283.80874636,0.00019178,2]
[314991953,1708717844895,-500.0,0.00019178,2]
[314991954,1708717844904,-500.0,0.00019178,2]
[314991956,1708717844913,-546.12,0.00019178,2]
[314991959,1708717844922,-54.613366,0.00019178,2]
[314991961,1708717844934,-445.386634,0.00019178,2]
[314991963,1708717844943,-500.0,0.00019178,2]
[314991965,1708717844952,-500.0,0.00019178,2]
[314991967,1708717844962,-192.14586106,0.00019178,2]
[314992152,1708717846724,-61.33262159,0.00019178,2]
[314992153,1708717846734,-162.96,0.00019178,2]
[314992154,1708717846744,-283.10454822,0.00019178,2]
[314992201,1708717868407,1000.0,0.00019178,7]
[314992202,1708717868801,1000.0,0.00019452,7]
[314992203,1708717869100,160.13133281,0.00019726,7]
[314992241,1708718059471,469.48213171,0.000176,2]
[314992243,1708718475321,3132.774358,0.0002,30]
[314992244,1708718516441,348.303743,0.0001795,2]
[314992246,1708718662863,461.0,0.0002,8]
[314992273,1708719031821,-307.43782509,0.00018107,2]
[314992791,1708719042795,-1314.96715617,0.00018107,2]
[314992793,1708719042805,-15970.718567,0.00018108,2]
[314992795,1708719042814,-174.151871,0.00018108,2]
[314992797,1708719042823,-3605.23405965,0.00018159,2]
[314992799,1708719042833,-316.02016945,0.000189,2]
[314992802,1708719042843,-18223.19273923,0.0001912,2]
[314992804,1708719042852,-765.0,0.00019168,3]
[314992805,1708719042862,-155.20797869,0.00019176,2]
[314992808,1708719042872,-155.0558201,0.00019176,2]
[314992810,1708719042882,-500.0,0.00019178,2]
[314992812,1708719042891,-500.0,0.00019178,2]
[314992814,1708719042901,-500.0,0.00019178,2]
[314992816,1708719042910,-500.0,0.00019178,2]
[314992817,1708719042919,-500.0,0.00019178,2]
[314992819,1708719042932,-500.75462063,0.00019178,2]
[314992821,1708719042941,-500.0,0.00019178,2]
[314992823,1708719042950,-500.0,0.00019178,2]
[314992826,1708719042961,-500.0,0.00019178,2]
[314992828,1708719042970,-500.0,0.00019178,2]
[314992830,1708719042981,-500.0,0.00019178,2]
[314992832,1708719042991,-282.45754295,0.00019178,2]
[314992834,1708719043002,-500.0,0.00019178,2]
[314992836,1708719043012,-500.0,0.00019178,2]
[314992838,1708719043020,-593.79,0.00019178,2]
[314992840,1708719043029,-1789.65,0.00019178,2]
[314992842,1708719043038,-860.89,0.00019178,2]
[314992844,1708719043047,-500.0,0.00019178,2]
[314992846,1708719043057,-1880.05,0.00019178,2]
[314992848,1708719043066,-832.0,0.00019178,2]
[314992850,1708719043075,-500.0,0.00019178,2]
[314992852,1708719043084,-436.19,0.00019178,2]
[314992854,1708719043094,-500.0,0.00019178,2]
[314992856,1708719043104,-500.0,0.00019178,2]
[314992858,1708719043114,-500.0,0.00019178,2]
[314992860,1708719043123,-500.0,0.00019178,2]
[314992862,1708719043132,-634.74,0.00019178,2]
[314992864,1708719043141,-500.0,0.00019178,2]
[314992866,1708719043151,-500.0,0.00019178,2]
[314992868,1708719043161,-500.0,0.00019178,2]
[314992870,1708719043170,-536.80728874,0.00019178,2]
[314992872,1708719043179,-500.0,0.00019178,2]
[314992874,1708719043189,-502.29401478,0.00019178,2]
[314992876,1708719043198,-603.28,0.00019178,2]
[314992878,1708719043208,-500.0,0.00019178,2]
[314992880,1708719043217,-500.0,0.00019178,2]
[314992882,1708719043228,-500.0,0.00019178,2]
[314992884,1708719043237,-268.76808909,0.00019178,2]
[314992886,1708719043246,-956.4,0.00019178,2]
[314992888,1708719043255,-500.0,0.00019178,2]
[314992890,1708719043264,-151.0,0.00019178,2]
[314992892,1708719043273,-151.0,0.00019178,2]
[314992894,1708719043282,-151.0,0.00019178,2]
[314992896,1708719043291,-151.0,0.00019178,2]
[314992898,1708719043300,-500.0,0.00019178,2]
[314992900,1708719043309,-621.18,0.00019178,2]
[314992902,1708719043322,-500.0,0.00019178,2]
[314992904,1708719043331,-649.35,0.00019178,2]
[314992906,1708719043340,-500.0,0.00019178,2]
[314992908,1708719043349,-500.0,0.00019178,2]
[314992910,1708719043358,-151.0,0.00019178,2]
[314992912,1708719043367,-151.0,0.00019178,2]
[314992914,1708719043376,-151.0,0.00019178,2]
[314992916,1708719043385,-151.0,0.00019178,2]
[314992918,1708719043394,-982.97,0.00019178,2]
[314992920,1708719043403,-500.0,0.00019178,2]
[314992935,1708719043535,-1009.43,0.00019178,2]
[314992938,1708719043550,-500.0,0.00019178,2]
[314992940,1708719043560,-3838.39,0.00019178,2]
[314992942,1708719043569,-881.78,0.00019178,2]
[314992944,1708719043578,-4473.99,0.00019178,2]
[314992945,1708719043588,-640.64,0.00019178,2]
[314992947,1708719043598,-1508.95,0.00019178,2]
[314992949,1708719043608,-500.0,0.00019178,2]
[314992951,1708719043617,-1233.33,0.00019178,2]
[314992953,1708719043626,-905.78,0.00019178,2]
[314992955,1708719043636,-1480.22,0.00019178,2]
[314992957,1708719043645,-500.0,0.00019178,2]
[314992959,1708719043657,-500.0,0.00019178,2]
[314992961,1708719043666,-1448.18,0.00019178,2]
[314992963,1708719043676,-440.55933183,0.00019178,2]
[314992965,1708719043685,-1592.24,0.00019178,2]
[314992967,1708719043694,-500.0,0.00019178,2]
[314992969,1708719043704,-2093.06,0.00019178,2]
[314992972,1708719043714,-500.0,0.00019178,2]
[314992973,1708719043723,-2071.1469938,0.00019178,2]
[314994946,1708719449156,-161.724447,0.00030959,120]
[314994947,1708719449183,-90.335553,0.00035,120]
[314994948,1708719470781,-161.7284365,0.00035,120]
[314994949,1708719470804,-1567.2715635,0.0003555,120]
[314994951,1708720044553,174.151871,0.00017903,2]
[314994952,1708720198854,232.11,0.000201,6]
[314995687,1708720239365,1000.0,0.00021,21]
[314996135,1708720244235,-1622.40498126,0.00018163,2]
[314996137,1708720244245,-1690.2937372,0.00018164,2]
[314996139,1708720244254,-476.67,0.00018288,2]
[314996141,1708720244264,-210.68011297,0.000189,2]
[314996143,1708720244273,-94.40294854,0.00019178,2]
[314996145,1708720244287,-405.59705146,0.00019178,2]
[314996146,1708720244297,-500.0,0.00019178,2]
[314996147,1708720244309,-94.40294854,0.00019178,2]
[314996148,1708720244321,-405.59705146,0.00019178,2]
[314996149,1708720244330,-197.92538761,0.00019178,2]
[314996150,1708720244339,-500.0,0.00019178,2]
[314996151,1708720244349,-645.69,0.00019178,2]
[314996152,1708720244359,-500.0,0.00019178,2]
[314996153,1708720244368,-500.0,0.00019178,2]
[314996154,1708720244378,-151.0,0.00019178,2]
[314996155,1708720244388,-409.64295234,0.00019178,2]
[314996156,1708720244399,-500.0,0.00019178,2]
[314996157,1708720244408,-480.91,0.00019178,2]
[314996158,1708720244417,-500.0,0.00019178,2]
[314996159,1708720244426,-500.0,0.00019178,2]
[314996160,1708720244436,-500.0,0.00019178,2]
[314996161,1708720244445,-668.73,0.00019178,2]
[314996162,1708720244454,-638.19,0.00019178,2]
[314996163,1708720244463,-500.0,0.00019178,2]
[314996164,1708720244472,-500.0,0.00019178,2]
[314996165,1708720244481,-500.0,0.00019178,2]
[314996166,1708720244491,-500.0,0.00019178,2]
[314996167,1708720244500,-500.0,0.00019178,2]
[314996168,1708720244509,-336.86,0.00019178,2]
[314996169,1708720244518,-500.0,0.00019178,2]
[314996170,1708720244527,-500.0,0.00019178,2]
[314996171,1708720244537,-500.0,0.00019178,2]
[314996172,1708720244547,-500.0,0.00019178,2]
[314996174,1708720244556,-500.0,0.00019178,2]
[314996175,1708720244565,-970.53,0.00019178,2]
[314996176,1708720244574,-500.0,0.00019178,2]
[314996178,1708720244583,-500.0,0.00019178,2]
[314996180,1708720244592,-500.0,0.00019178,2]
[314996182,1708720244601,-500.0,0.00019178,2]
[314996184,1708720244610,-500.0,0.00019178,2]
[314996186,1708720244619,-500.0,0.00019178,2]
[314996188,1708720244628,-636.44876851,0.00019178,2]
[314996190,1708720244637,-500.0,0.00019178,2]
[314996192,1708720244646,-500.0,0.00019178,2]
[314996194,1708720244655,-500.0,0.00019178,2]
[314996195,1708720244664,-596.33740591,0.00019178,2]
[314996197,1708720244674,-500.0,0.00019178,2]
[314996199,1708720244684,-500.0,0.00019178,2]
[314996201,1708720244693,-500.0,0.00019178,2]
[314996203,1708720244702,-500.0,0.00019178,2]
[314996205,1708720244712,-108.21619609,0.00019178,2]
[314996218,1708720244818,-108.67925569,0.00019178,2]
[314996220,1708720244827,-500.0,0.00019178,2]
[314996222,1708720244836,-370.42460352,0.00019178,2]
[314996224,1708720244845,-1181.94,0.00019178,2]
[314996226,1708720244854,-275.394671,0.00019178,2]
[314996228,1708720244864,-845.04,0.00019178,2]
[314996230,1708720244877,-1453.12,0.00019178,2]
[314996232,1708720244886,-500.0,0.00019178,2]
[314996234,1708720244895,-613.94,0.00019178,2]
[314996236,1708720244904,-452.27,0.00019178,2]
[314996238,1708720244913,-500.0,0.00019178,2]
[314996240,1708720244923,-500.0,0.00019178,2]
[314996242,1708720244933,-1106.41,0.00019178,2]
[314996244,1708720244942,-1065.79,0.00019178,2]
[314996246,1708720244951,-500.0,0.00019178,2]
[314996248,1708720244960,-89.14559522,0.00019178,2]
[314996250,1708720244972,-1392.79440478,0.00019178,2]
[314996252,1708720244981,-500.0,0.00019178,2]
[314996254,1708720244990,-75.76626489,0.00019178,2]
[314996257,1708720245001,-424.23373511,0.00019178,2]
[314996259,1708720245010,-1525.9,0.00019178,2]
[314996261,1708720245019,-48.97696911,0.00019178,2]
[314997459,1708721101366,4562.8,0.0003,120]
[314997465,1708721359472,580.0,0.0003,120]
[314997518,1708721432192,-1622.40498126,0.00019177,2]
[314997520,1708721432201,-500.0,0.00019178,2]
[314997522,1708721432210,-640.87,0.00019178,2]
[314997524,1708721432219,-500.0,0.00019178,2]
[314997539,1708721432350,-500.0,0.00019178,2]
[314997541,1708721432359,-500.0,0.00019178,2]
[314997543,1708721432368,-500.0,0.00019178,2]
[314997545,1708721432376,-500.0,0.00019178,2]
[314997547,1708721432386,-500.0,0.00019178,2]
[314997549,1708721432395,-500.0,0.00019178,2]
[314997551,1708721432404,-513.27120478,0.00019178,2]
[314997553,1708721432413,-424.21702039,0.00019178,2]
[314997554,1708721432422,-611.6,0.00019178,2]
[314997556,1708721432430,-500.0,0.00019178,2]
[314997558,1708721432439,-500.0,0.00019178,2]
[314997560,1708721432448,-500.0,0.00019178,2]
[314997562,1708721432457,-312.35437537,0.00019178,2]
[314997564,1708721432467,-342.24176169,0.00019178,2]
[314997566,1708721432477,-500.0,0.00019178,2]
[314997568,1708721432486,-500.0,0.00019178,2]
[314997570,1708721432496,-500.0,0.00019178,2]
[314997572,1708721432504,-569.05,0.00019178,2]
[314997574,1708721432513,-500.0,0.00019178,2]
[314997576,1708721432523,-1007.19,0.00019178,2]
[314997578,1708721432532,-500.0,0.00019178,2]
[314997580,1708721432541,-797.34,0.00019178,2]
[314997582,1708721432550,-500.0,0.00019178,2]
[314997584,1708721432559,-500.0,0.00019178,2]
[314997586,1708721432568,-197.145318,0.00019178,2]
[314997588,1708721432577,-377.46489479,0.00019178,2]
[314997589,1708721432587,-300.98,0.00019178,2]
[314997591,1708721432596,-500.0,0.00019178,2]
[314997593,1708721432606,-830.66,0.00019178,2]
[314997595,1708721432614,-500.0,0.00019178,2]
[314997597,1708721432624,-1132.69,0.00019178,2]
[314997599,1708721432633,-609.2,0.00019178,2]
[314997601,1708721432641,-1091.53,0.00019178,2]
[314997603,1708721432651,-1420.19,0.00019178,2]
[314997605,1708721432663,-6793.23,0.00019178,2]
[314997606,1708721432672,-1550.46,0.00019178,2]
[314997608,1708721432681,-403.17387071,0.00019178,2]
[314997610,1708721432690,-2135.12,0.00019178,2]
[314997612,1708721432700,-642.6023836,0.00019178,2]
[314997614,1708721432710,-448.71381235,0.00019178,2]
[314997616,1708721432718,-965.91,0.00019178,2]
[314997618,1708721432728,-500.0,0.00019178,2]
[314997620,1708721432738,-500.0,0.00019178,2]
[314997622,1708721432747,-967.37,0.00019178,2]
[314997624,1708721432756,-500.0,0.00019178,2]
[314997625,1708721432767,-500.0,0.00019178,2]
[314997628,1708721432777,-639.72,0.00019178,2]
[314997630,1708721432786,-500.0,0.00019178,2]
[314997631,1708721432796,-500.0,0.00019178,2]
[314997634,1708721432806,-500.0,0.00019178,2]
[314997635,1708721432815,-500.0,0.00019178,2]
[314997637,1708721432825,-500.0,0.00019178,2]
[314997639,1708721432834,-514.55704809,0.00019178,2]
[314997641,1708721432843,-500.0,0.00019178,2]
[314997643,1708721432852,-500.0,0.00019178,2]
[314997645,1708721432864,-500.0,0.00019178,2]
[314997648,1708721432873,-12483.93,0.00019178,2]
[314997649,1708721432882,-500.0,0.00019178,2]
[314997651,1708721432892,-942.02,0.00019178,2]
[314997653,1708721432901,-1301.83,0.00019178,2]
[314997655,1708721432910,-500.0,0.00019178,2]
[314997657,1708721432920,-3896.1,0.00019178,2]
[314997660,1708721432929,-1823.26,0.00019178,2]
[314997661,1708721432938,-4668.5,0.00019178,2]
[314997663,1708721432948,-2130.7,0.00019178,2]
[314997665,1708721432957,-500.0,0.00019178,2]
[314997667,1708721432966,-500.0,0.00019178,2]
[314997669,1708721432975,-870.62,0.00019178,2]
[314997671,1708721432984,-1094.81,0.00019178,2]
[314997673,1708721432995,-1539.33,0.00019178,2]
[314997675,1708721433005,-1801.71,0.00019178,2]
[314997678,1708721433015,-500.0,0.00019178,2]
[314997679,1708721433025,-1392.57,0.00019178,2]
[314997681,1708721433034,-636.97,0.00019178,2]
[314997683,1708721433044,-8224.37932367,0.00019178,2]
[314997756,1708721438147,-4808.90067633,0.00019178,2]
[314997757,1708721438157,-1021.38,0.00019178,2]
[314997758,1708721438166,-500.0,0.00019178,2]
[314997759,1708721438175,-500.0,0.00019178,2]
[314997760,1708721438185,-166.666666,0.00019178,2]
[314997761,1708721438194,-175.25,0.000194,2]
[314997762,1708721438203,-155.08063994,0.00019401,2]
[314997763,1708721438213,-640.87,0.00019452,2]
[314997764,1708721438223,-500.0,0.00019452,2]
[314997765,1708721438232,-211.71520741,0.00019452,2]
[314997766,1708721438240,-500.0,0.00019452,2]
[314997767,1708721438249,-611.6,0.00019452,2]
[314997768,1708721438259,-569.05,0.00019452,2]
[314997769,1708721438268,-1007.19,0.00019452,2]
[314997770,1708721438278,-500.0,0.00019452,2]
[314997771,1708721438288,-797.34,0.00019452,2]
[314997772,1708721438300,-500.0,0.00019452,2]
[314997773,1708721438311,-500.0,0.00019452,2]
[314997774,1708721438321,-830.66,0.00019452,2]
[314997775,1708721438331,-1132.69,0.00019452,2]
[314997776,1708721438340,-609.2,0.00019452,2]
[314997777,1708721438350,-1091.53,0.00019452,2]
[314997778,1708721438360,-1420.19,0.00019452,2]
[314997779,1708721438369,-4361.65099432,0.00019452,2]
[314997786,1708721444411,-998.944758,0.00019442,3]
[314997791,1708721444477,-8574.52205049,0.00019442,3]
[314997794,1708721444777,-90587.56319151,0.00019442,3]
[314997795,1708721444787,-1550.46,0.00019452,2]
[314997796,1708721444797,-2135.12,0.00019452,2]
[314997797,1708721444806,-965.91,0.00019452,2]
[314997798,1708721444816,-967.37,0.00019452,2]
[314997800,1708721444826,-639.72,0.00019452,2]
[314997802,1708721444835,-343.17770297,0.00019452,2]
[314997804,1708721444845,-1421.22159498,0.00019452,2]
[314997806,1708721444857,-348.89256572,0.00019452,2]
[314997851,1708721446267,-6328.44,0.00019178,2]
[314997853,1708721446278,-761.44,0.00019178,2]
[314997855,1708721446287,-1766.03303883,0.00019452,2]
[314997857,1708721446299,-305.53024882,0.00019452,2]
[314998010,1708721660082,461.47077304,0.000176,2]
[314998062,1708722632460,-1622.40498126,0.00019167,2]
[314998064,1708722632470,-600.33,0.00019168,3]
[314998066,1708722632478,-964.69269397,0.00019176,2]
[314998068,1708722632487,-500.0,0.00019178,2]
[314998070,1708722632496,-500.0,0.00019178,2]
[314998072,1708722632505,-500.0,0.00019178,2]
[314998074,1708722632514,-254.14851619,0.00019178,2]
[314998076,1708722632523,-500.0,0.00019178,2]
[314998078,1708722632532,-500.0,0.00019178,2]
[314998080,1708722632540,-500.0,0.00019178,2]
[314998082,1708722632549,-500.0,0.00019178,2]
[314998084,1708722632558,-500.0,0.00019178,2]
[314998086,1708722632568,-500.0,0.00019178,2]
[314998088,1708722632578,-500.0,0.00019178,2]
[314998090,1708722632587,-500.0,0.00019178,2]
[314998092,1708722632596,-500.0,0.00019178,2]
[314998094,1708722632605,-500.0,0.00019178,2]
[314998096,1708722632614,-500.0,0.00019178,2]
[314998098,1708722632623,-500.0,0.00019178,2]
[314998100,1708722632631,-500.0,0.00019178,2]
[314998102,1708722632640,-500.0,0.00019178,2]
[314998104,1708722632650,-573.77,0.00019178,2]
[314998106,1708722632659,-500.0,0.00019178,2]
[314998108,1708722632668,-500.0,0.00019178,2]
[314998110,1708722632677,-500.0,0.00019178,2]
[314998112,1708722632686,-183.66690756,0.00019178,2]
[314998114,1708722632695,-730.89,0.00019178,2]
[314998116,1708722632704,-500.0,0.00019178,2]
[314998118,1708722632713,-500.0,0.00019178,2]
[314998120,1708722632722,-500.0,0.00019178,2]
[314998122,1708722632732,-588.09,0.00019178,2]
[314998124,1708722632740,-500.0,0.00019178,2]
[314998126,1708722632749,-500.0,0.00019178,2]
[314998128,1708722632758,-617.87,0.00019178,2]
[314998130,1708722632767,-500.0,0.00019178,2]
[314998132,1708722632776,-500.0,0.00019178,2]
[314998134,1708722632785,-968.71,0.00019178,2]
[314998136,1708722632794,-500.0,0.00019178,2]
[314998138,1708722632803,-500.0,0.00019178,2]
[314998140,1708722632812,-500.0,0.00019178,2]
[314998142,1708722632821,-500.0,0.00019178,2]
[314998144,1708722632830,-500.0,0.00019178,2]
[314998146,1708722632838,-500.0,0.00019178,2]
[314998148,1708722632847,-500.0,0.00019178,2]
[314998150,1708722632857,-500.0,0.00019178,2]
[314998152,1708722632865,-649.59,0.00019178,2]
[314998154,1708722632874,-500.0,0.00019178,2]
[314998156,1708722632886,-668.33,0.00019178,2]
[314998158,1708722632896,-500.0,0.00019178,2]
[314998160,1708722632905,-1062.04,0.00019178,2]
[314998162,1708722632914,-750.55,0.00019178,2]
[314998164,1708722632923,-1394.5,0.00019178,2]
[314998166,1708722632932,-558.43,0.00019178,2]
[314998168,1708722632941,-500.0,0.00019178,2]
[314998170,1708722632952,-500.0,0.00019178,2]
[314998172,1708722632961,-1030.5,0.00019178,2]
[314998174,1708722632970,-1048.1,0.00019178,2]
[314998176,1708722632979,-1473.9,0.00019178,2]
[314998178,1708722632988,-593.44626489,0.00019178,2]
[314998180,1708722632997,-500.0,0.00019178,2]
[314998182,1708722633006,-500.0,0.00019178,2]
[314998184,1708722633015,-500.0,0.00019178,2]
[314998186,1708722633027,-500.0,0.00019178,2]
[314998188,1708722633036,-1468.67,0.00019178,2]
[314998190,1708722633045,-500.0,0.00019178,2]
[314998192,1708722633054,-500.0,0.00019178,2]
[314998194,1708722633063,-985.23,0.00019178,2]
[314998196,1708722633073,-2301.45976134,0.00019178,2]
[314998426,1708722638359,-640.30302664,0.00019178,2]
[314998428,1708722638370,-6941.9,0.00019178,2]
[314998433,1708722638418,-2233.20721202,0.00019178,2]
[314998435,1708722638427,-3654.69214234,0.00019178,2]
[314998437,1708722638438,-2633.38831629,0.00019178,2]
[314998719,1708722641653,-14.05954137,0.00019178,2]
[314998721,1708722641662,-500.0,0.00019178,2]
[314998723,1708722641672,-2097.79,0.00019178,2]
[314998725,1708722641681,-319.78511435,0.00019178,2]
[314998727,1708722641692,-180.21488565,0.00019178,2]
[314998729,1708722641702,-500.0,0.00019178,2]
[314998731,1708722641711,-1278.25,0.00019178,2]
[314998733,1708722641720,-500.0,0.00019178,2]
[314998735,1708722641730,-500.0,0.00019178,2]
[314998737,1708722641739,-131.94190401,0.00019178,2]
[314998901,1708722643429,-368.05809599,0.00019178,2]
[314998902,1708722643438,-631.94190401,0.00019178,2]
[314998905,1708722643450,-264.46625028,0.00019178,2]
[314998907,1708722643462,-44.49184571,0.00019178,2]
[314998909,1708722643471,-500.0,0.00019178,2]
[314998911,1708722643481,-500.0,0.00019178,2]
[314998913,1708722643490,-433.26993041,0.00019178,2]
[314999218,1708722646446,-66.73006959,0.00019178,2]
[314999220,1708722646456,-649.95917746,0.00019178,2]
[314999222,1708722646468,-1198.22082254,0.00019178,2]
[314999224,1708722646477,-500.0,0.00019178,2]